fUST/lending_fUST_20250602
["ID","MTS","AMOUNT","RATE_DAILY","PERIOD"]
[363714448,1748841037938,-355.50830295,0.00019071,2]
[363714449,1748841037947,-430.0,0.00019071,2]
[363714450,1748841037957,-414.71003041,0.00019071,2]
[363714451,1748841037968,-508.77784094,0.00019071,2]
[363714452,1748841037978,-479.39463629,0.00019071,2]
[363714453,1748841037988,-430.0,0.00019071,2]
[363714454,1748841037998,-430.0,0.00019071,2]
[363714455,1748841038007,-430.0,0.00019071,2]
[363714456,1748841038017,-225.8679098,0.00019071,2]
[363714457,1748841038026,-457.99700402,0.00019071,2]
[363714458,1748841038036,-430.0,0.00019071,2]
[363714459,1748841038045,-437.99790643,0.00019071,2]
[363714460,1748841038055,-430.0,0.00019071,2]
[363714461,1748841038065,-443.43060188,0.00019072,2]
[363714462,1748841038075,-409.06717448,0.00019074,2]
[363714463,1748841038085,-430.0,0.00019074,2]
[363714464,1748841038095,-413.7434534,0.00019074,2]
[363714465,1748841038104,-255.52723089,0.00019177,2]
[363714466,1748841038113,-430.0,0.00019177,2]
[363714467,1748841038124,-430.0,0.00019177,2]
[363714468,1748841038133,-430.0,0.00019177,2]
[363714469,1748841038143,-430.0,0.00019178,2]
[363714470,1748841038153,-177.453699,0.00019178,2]
[363714471,1748841038163,-340.96525395,0.00019243,2]
[363714472,1748841038172,-368.18,0.00019243,2]
[363714473,1748841038183,-430.0,0.00019243,2]
[363714474,1748841038192,-423.51459779,0.00019243,2]
[363714475,1748841038202,-403.08515721,0.00019243,2]
[363714476,1748841038211,-689.41,0.00019243,2]
[363714477,1748841038221,-561.12,0.00019243,2]
[363714478,1748841038231,-430.0,0.00019243,2]
[363714479,1748841038240,-430.0,0.00019243,2]
[363714480,1748841038249,-430.0,0.00019243,2]
[363714481,1748841038259,-430.0,0.00019243,2]
[363714482,1748841038268,-679.37,0.00019243,2]
[363714483,1748841038278,-430.0,0.00019243,2]
[363714484,1748841038287,-430.0,0.00019243,2]
[363714485,1748841038297,-430.0,0.00019243,2]
[363714486,1748841038307,-430.0,0.00019243,2]
[363714487,1748841038316,-430.0,0.00019243,2]
[363714488,1748841038326,-430.0,0.00019243,2]
[363714489,1748841038335,-430.0,0.00019243,2]
[363714490,1748841038344,-181.08896332,0.00019243,2]
[363714491,1748841038354,-430.0,0.00019243,2]
[363714492,1748841038364,-434.91175788,0.00019243,2]
[363714493,1748841038373,-430.0,0.00019243,2]
[363714494,1748841038383,-438.86606368,0.00019243,2]
[363714495,1748841038392,-392.60563126,0.00019243,2]
[363714496,1748841038403,-430.0,0.00019243,2]
[363714497,1748841038412,-430.0,0.00019244,2]
[363714498,1748841038422,-450.09483473,0.00019244,2]
[363714499,1748841038432,-500.0,0.00019244,2]
[363714500,1748841038442,-430.0,0.00019244,2]
[363714501,1748841038451,-357.68955509,0.00019244,2]
[363714502,1748841038461,-430.0,0.00019244,2]
[363714503,1748841038471,-430.0,0.00019244,2]
[363714504,1748841038480,-324.60207816,0.00019244,2]
[363714505,1748841038493,-196.23792184,0.00019244,2]
[363714506,1748841038502,-366.54970926,0.00019244,2]
[363714507,1748841038514,-63.45029074,0.00019244,2]
[363714508,1748841038524,-430.0,0.00019345,2]
[363714509,1748841038534,-430.0,0.00019345,2]
[363714510,1748841038543,-430.0,0.00019345,2]
[363714511,1748841038553,-430.0,0.00019345,2]
[363714512,1748841038563,-371.85422467,0.00019348,2]
[363714513,1748841038572,-430.0,0.00019451,2]
[363714514,1748841038583,-462.51408139,0.00019451,2]
[363714515,1748841038593,-301.71,0.00019477,2]
[363714516,1748841038603,-226.415796,0.00019517,2]
[363714517,1748841038616,-203.584204,0.00019517,2]
[363714518,1748841038626,-689.41,0.00019517,2]
[363714519,1748841038636,-561.12,0.00019517,2]
[363714520,1748841038645,-430.0,0.00019517,2]
[363714521,1748841038656,-430.0,0.00019517,2]
[363714522,1748841038666,-679.37,0.00019517,2]
[363714523,1748841038676,-430.0,0.00019517,2]
[363714524,1748841038686,-430.0,0.00019517,2]
[363714525,1748841038696,-430.0,0.00019517,2]
[363714526,1748841038706,-430.0,0.00019518,2]
[363714527,1748841038716,-244.33360965,0.00019518,2]
[363714528,1748841038728,-185.66639035,0.00019518,2]
[363714529,1748841038738,-430.0,0.00019518,2]
[363714530,1748841038747,-520.84,0.00019518,2]
[363714531,1748841038756,-281.31042886,0.00019518,2]
[363714532,1748841038766,-430.0,0.00019619,2]
[363714533,1748841038776,-430.0,0.00019619,2]
[363714534,1748841038787,-210.071,0.00019627,2]
[363714535,1748841038797,-430.0,0.00019791,2]
[363714536,1748841038807,-689.41,0.00019791,2]
[363714537,1748841038817,-561.12,0.00019791,2]
[363714538,1748841038828,-430.0,0.00019791,2]
[363714539,1748841038838,-679.37,0.00019791,2]
[363714540,1748841038847,-430.0,0.00019791,2]
[363714541,1748841038857,-294.58931713,0.00019791,2]
[363714542,1748841038867,-430.0,0.00019792,2]
[363714543,1748841038877,-430.0,0.00019792,2]
[363714544,1748841038888,-166.7737139,0.00019792,2]
[363714545,1748841038899,-520.84,0.00019792,2]
[363714546,1748841038909,-430.0,0.00019893,2]
[363714547,1748841038919,-319.17,0.00019893,2]
[363714548,1748841038929,-29.04915987,0.00019898,2]
[363714871,1748841042882,-430.0,0.00019243,2]
[363714873,1748841042892,-470.95084013,0.00019898,2]
[363714875,1748841042902,-94714.33009948,0.0002,2]
[363714877,1748841042913,-2165.95833321,0.0002,2]
[363714880,1748841042938,-345.31828344,0.0002,2]
[363715064,1748841046162,-830.6395,0.0002,2]
[363715066,1748841046210,-1430.34816111,0.0002,2]
[363715098,1748841379174,199.5569,0.00013699,2]
[363715117,1748842181824,2050.0,0.0002,120]
[363715156,1748842232204,-1115.51770175,0.00018711,2]
[363715157,1748842232217,-1758.29695784,0.00018711,2]
[363715158,1748842232375,-2126.18534041,0.00018711,2]
[363715159,1748842232385,-1242.61795335,0.000189,2]
[363715160,1748842232396,-599.7721329,0.00018904,2]
[363715161,1748842232406,-1000.0,0.00019033,2]
[363715162,1748842232417,-300.0,0.00019071,2]
[363715163,1748842232430,-300.0,0.00019173,2]
[363715164,1748842232439,-430.0,0.00019177,2]
[363715165,1748842232449,-430.0,0.00019177,2]
[363715166,1748842232459,-151.0,0.00019178,2]
[363715167,1748842232469,-218.732465,0.00019178,2]
[363715168,1748842232479,-291.33931412,0.00019233,2]
[363715169,1748842232489,-430.0,0.00019238,2]
[363715170,1748842232501,-430.0,0.00019238,2]
[363715171,1748842232511,-1279.57,0.00019238,2]
[363715172,1748842232521,-430.0,0.00019238,2]
[363715173,1748842232530,-1222.42,0.00019238,2]
[363715174,1748842232540,-192.6235388,0.00019238,2]
[363715175,1748842232550,-430.0,0.00019238,2]
[363715176,1748842232560,-495.48,0.00019238,2]
[363715177,1748842232569,-430.0,0.00019238,2]
[363715178,1748842232579,-1540.68,0.00019238,2]
[363715179,1748842232589,-564.96,0.00019238,2]
[363715180,1748842232599,-666.36,0.00019238,2]
[363715181,1748842232609,-430.0,0.00019239,2]
[363715182,1748842232619,-430.0,0.00019239,2]
[363715183,1748842232628,-430.0,0.00019239,2]
[363715184,1748842232638,-430.0,0.00019239,2]
[363715185,1748842232648,-430.0,0.00019239,2]
[363715186,1748842232657,-430.0,0.00019239,2]
[363715187,1748842232667,-430.0,0.00019239,2]
[363715188,1748842232676,-430.0,0.00019239,2]
[363715189,1748842232686,-430.0,0.00019239,2]
[363715190,1748842232696,-430.0,0.00019239,2]
[363715191,1748842232706,-222.28,0.00019239,2]
[363715192,1748842232716,-430.0,0.00019239,2]
[363715193,1748842232726,-677.72,0.00019239,2]
[363715194,1748842232735,-430.0,0.00019239,2]
[363715195,1748842232744,-431.14,0.0001924,2]
[363715196,1748842232754,-430.0,0.0001924,2]
[363715197,1748842232764,-430.0,0.0001924,2]
[363715198,1748842232773,-430.0,0.0001924,2]
[363715199,1748842232783,-430.0,0.0001924,2]
[363715200,1748842232793,-201.42,0.0001924,2]
[363715201,1748842232802,-430.0,0.0001924,2]
[363715202,1748842232811,-430.0,0.0001924,2]
[363715203,1748842232821,-3378.21,0.0001924,2]
[363715204,1748842232831,-430.0,0.0001924,2]
[363715205,1748842232841,-609.25,0.0001924,2]
[363715206,1748842232850,-430.0,0.0001924,2]
[363715207,1748842232860,-430.0,0.0001924,2]
[363715208,1748842232869,-430.0,0.00019241,2]
[363715209,1748842232879,-430.0,0.00019241,2]
[363715210,1748842232888,-430.0,0.00019241,2]
[363715211,1748842232898,-430.0,0.00019241,2]
[363715212,1748842232907,-430.0,0.00019241,2]
[363715213,1748842232917,-500.0,0.00019241,2]
[363715214,1748842232927,-430.0,0.00019241,2]
[363715215,1748842232936,-156.03,0.00019241,2]
[363715216,1748842232946,-430.0,0.00019241,2]
[363715217,1748842232955,-430.0,0.00019241,2]
[363715218,1748842232965,-430.0,0.00019241,2]
[363715219,1748842232974,-430.0,0.00019241,2]
[363715220,1748842232984,-430.0,0.00019241,2]
[363715221,1748842232994,-171.7,0.00019241,2]
[363715222,1748842233003,-430.0,0.00019241,2]
[363715223,1748842233013,-430.0,0.00019242,2]
[363715224,1748842233023,-430.0,0.00019242,2]
[363715225,1748842233033,-430.0,0.00019242,2]
[363715226,1748842233043,-430.0,0.00019242,2]
[363715227,1748842233054,-326.19704284,0.00019242,2]
[363715228,1748842233064,-463.83277954,0.00019242,2]
[363715229,1748842233075,-378.18881437,0.00019242,2]
[363715230,1748842233085,-430.0,0.00019242,2]
[363715231,1748842233096,-599.7721329,0.00019265,2]
[363715232,1748842233106,-500.0,0.00019276,2]
[363715233,1748842233116,-500.0,0.00019276,2]
[363715234,1748842233126,-152.54856977,0.00019276,2]
[363715235,1748842233137,-500.0,0.00019303,2]
[363715236,1748842233147,-500.0,0.00019303,2]
[363715237,1748842233158,-4535.57255569,0.00019329,2]
[363715238,1748842233169,-500.0,0.00019331,2]
[363715239,1748842233178,-502.91153923,0.00019331,2]
[363715240,1748842233189,-500.0,0.00019358,2]
[363715241,1748842233199,-500.0,0.00019386,2]
[363715242,1748842233208,-500.0,0.00019413,2]
[363715243,1748842233219,-500.0,0.0001944,2]
[363715244,1748842233230,-430.0,0.00019451,2]
[363715245,1748842233240,-430.0,0.00019451,2]
[363715246,1748842233251,-500.0,0.00019468,2]
[363715247,1748842233261,-500.0,0.00019495,2]
[363715248,1748842233271,-430.0,0.00019512,2]
[363715249,1748842233281,-430.0,0.00019512,2]
[363715250,1748842233291,-1279.57,0.00019512,2]
[363715251,1748842233301,-430.0,0.00019512,2]
[363715252,1748842233313,-1222.42,0.00019512,2]
[363715253,1748842233323,-430.0,0.00019512,2]
[363715254,1748842233333,-430.0,0.00019512,2]
[363715255,1748842233343,-1540.68,0.00019512,2]
[363715256,1748842233353,-564.96,0.00019512,2]
[363715257,1748842233363,-666.36,0.00019512,2]
[363715258,1748842233373,-430.0,0.00019513,2]
[363715259,1748842233383,-430.0,0.00019513,2]
[363715260,1748842233394,-430.0,0.00019513,2]
[363715261,1748842233404,-427.41324943,0.00019513,2]
[363715262,1748842233413,-430.0,0.00019513,2]
[363715263,1748842233423,-430.0,0.00019513,2]
[363715264,1748842233433,-430.0,0.00019513,2]
[363715265,1748842233445,-430.0,0.00019513,2]
[363715266,1748842233455,-430.0,0.00019513,2]
[363715267,1748842233466,-677.72,0.00019513,2]
[363715268,1748842233476,-430.0,0.00019513,2]
[363715269,1748842233486,-431.14,0.00019514,2]
[363715270,1748842233497,-430.0,0.00019514,2]
[363715271,1748842233509,-430.0,0.00019514,2]
[363715272,1748842233520,-430.0,0.00019514,2]
[363715273,1748842233530,-430.0,0.00019514,2]
[363715274,1748842233540,-430.0,0.00019514,2]
[363715275,1748842233550,-3378.21,0.00019514,2]
[363715276,1748842233560,-609.25,0.00019514,2]
[363715277,1748842233570,-430.0,0.00019514,2]
[363715278,1748842233582,-430.0,0.00019514,2]
[363715279,1748842233592,-268.19901486,0.00019515,2]
[363715280,1748842233603,-430.0,0.00019515,2]
[363715281,1748842233613,-242.78,0.00019515,2]
[363715282,1748842233623,-430.0,0.00019515,2]
[363715283,1748842233633,-500.35979412,0.00019515,2]
[363715284,1748842233642,-500.0,0.00019515,2]
[363715285,1748842233652,-430.0,0.00019515,2]
[363715286,1748842233662,-435.5,0.00019515,2]
[363715287,1748842233672,-430.0,0.00019515,2]
[363715288,1748842233682,-430.0,0.00019515,2]
[363715289,1748842233692,-430.0,0.00019515,2]
[363715290,1748842233702,-430.0,0.00019515,2]
[363715291,1748842233711,-430.0,0.00019515,2]
[363715292,1748842233722,-228.43,0.00019516,2]
[363715293,1748842233732,-430.0,0.00019516,2]
[363715294,1748842233742,-430.0,0.00019516,2]
[363715295,1748842233752,-407.41348155,0.00019516,2]
[363715296,1748842233762,-430.0,0.00019516,2]
[363715297,1748842233772,-2669.2,0.00019517,2]
[363715298,1748842233782,-2669.2,0.00019517,2]
[363715299,1748842233792,-500.0,0.00019523,2]
[363715300,1748842233802,-500.0,0.0001955,2]
[363715301,1748842233812,-599.7721329,0.00019556,2]
[363715302,1748842233822,-275.43614523,0.00019577,2]
[363715303,1748842233831,-310.839,0.00019625,2]
[363715304,1748842233841,-430.0,0.00019725,2]
[363715305,1748842233851,-430.0,0.00019725,2]
[363715306,1748842233861,-250.60648377,0.00019737,2]
[363715307,1748842234015,-430.0,0.00019786,2]
[363715308,1748842234026,-1279.57,0.00019786,2]
[363715309,1748842234036,-430.0,0.00019786,2]
[363715310,1748842234046,-1222.42,0.00019786,2]
[363715311,1748842234056,-430.0,0.00019786,2]
[363715312,1748842234065,-430.0,0.00019786,2]
[363715313,1748842234075,-1540.68,0.00019786,2]
[363715314,1748842234085,-564.96,0.00019786,2]
[363715315,1748842234098,-666.36,0.00019786,2]
[363715316,1748842234108,-430.0,0.00019787,2]
[363715317,1748842234118,-430.0,0.00019787,2]
[363715318,1748842234127,-430.0,0.00019787,2]
[363715319,1748842234137,-430.0,0.00019787,2]
[363715320,1748842234146,-338.38,0.00019787,2]
[363715321,1748842234156,-430.0,0.00019787,2]
[363715322,1748842234166,-430.0,0.00019787,2]
[363715323,1748842234175,-430.0,0.00019787,2]
[363715324,1748842234184,-677.72,0.00019787,2]
[363715325,1748842234194,-430.0,0.00019787,2]
[363715326,1748842234204,-431.14,0.00019788,2]
[363715327,1748842234215,-430.0,0.00019788,2]
[363715328,1748842234225,-430.0,0.00019788,2]
[363715329,1748842234234,-430.0,0.00019788,2]
[363715330,1748842234243,-430.0,0.00019788,2]
[363715331,1748842234253,-430.0,0.00019788,2]
[363715332,1748842234263,-3378.21,0.00019788,2]
[363715333,1748842234273,-609.25,0.00019788,2]
[363715334,1748842234283,-430.0,0.00019788,2]
[363715335,1748842234293,-430.0,0.00019788,2]
[363715336,1748842234303,-430.0,0.00019789,2]
[363715337,1748842234314,-557.57,0.00019789,2]
[363715338,1748842234324,-430.0,0.00019789,2]
[363715339,1748842234333,-430.0,0.00019789,2]
[363715340,1748842234343,-430.0,0.00019789,2]
[363715341,1748842234353,-430.0,0.00019789,2]
[363715342,1748842234362,-456.7367056,0.00019789,2]
[363715343,1748842234372,-430.0,0.00019789,2]
[363715344,1748842234382,-430.0,0.0001979,2]
[363715345,1748842234392,-480.71021645,0.0001979,2]
[363715346,1748842234402,-166.42314775,0.0001979,2]
[363715347,1748842234411,-599.7721329,0.00019876,2]
[363715348,1748842234421,-296.22,0.00019891,2]
[363715349,1748842234430,-182.73258511,0.00019899,2]
[363715350,1748842234440,-155.0,0.000199,2]
[363715351,1748842234449,-500.0,0.00019973,2]
[363715352,1748842234459,-500.0,0.00019973,2]
[363715353,1748842234471,-500.0,0.00019973,2]
[363715354,1748842234481,-500.0,0.00019973,2]
[363715355,1748842234491,-502.2187472,0.00019973,2]
[363715356,1748842234507,-471.47148591,0.00019973,2]
[363715357,1748842234518,-408.85017109,0.00019973,2]
[363715358,1748842234528,-192.57,0.00019989,3]
[363715359,1748842234538,-577.71,0.00019989,3]
[363715360,1748842234550,-21085.15878323,0.00019998,3]
[363715361,1748842234560,-167244.88499087,0.00019998,2]
[363715362,1748842234570,-12668.79298183,0.00019998,3]
[363715363,1748842234581,-842.5625,0.00019998,3]
[363715364,1748842234591,-212.83419937,0.00019998,3]
[363715365,1748842234602,-430.0,0.00019999,2]
[363715366,1748842234611,-430.0,0.00019999,2]
[363715367,1748842234622,-160.0,0.00019999,2]
[363715368,1748842234632,-104885.40955212,0.0002,2]
[363715421,1748842238082,-46659.57298326,0.0002,2]
[363715423,1748842238092,-4189.0,0.0002,2]
[363715425,1748842238102,-300.0,0.0002,2]
[363715427,1748842238112,-973.42701674,0.0002,2]
[363715437,1748842238192,-223.95390513,0.0002,2]
[363715439,1748842238202,-107290.22368921,0.0002,2]
[363715441,1748842238211,-500.52456652,0.0002,2]
[363715443,1748842238222,-500.0,0.00020059,2]
[363715445,1748842238232,-500.0,0.00020059,2]
[363715447,1748842238241,-500.0,0.00020059,2]
[363715449,1748842238251,-475.53572569,0.00020059,2]
[363715451,1748842238261,-500.0,0.00020059,2]
[363715453,1748842238270,-224.25141159,0.00020059,2]
[363715455,1748842238280,-500.0,0.00020059,2]
[363715457,1748842238289,-500.0,0.00020059,2]
[363715459,1748842238299,-500.0,0.00020059,2]
[363715461,1748842238308,-500.0,0.00020059,2]
[363715463,1748842238318,-500.0,0.00020059,2]
[363715465,1748842238327,-500.0,0.00020059,2]
[363715467,1748842238337,-500.0,0.00020059,2]
[363715469,1748842238347,-500.0,0.00020059,2]
[363715471,1748842238356,-500.0,0.00020059,2]
[363715473,1748842238366,-500.0,0.00020059,2]
[363715475,1748842238375,-500.0,0.00020059,2]
[363715477,1748842238386,-500.0,0.00020059,2]
[363715479,1748842238396,-430.0,0.0002006,2]
[363715481,1748842238406,-1279.57,0.0002006,2]
[363715483,1748842238415,-430.0,0.0002006,2]
[363715485,1748842238424,-1222.42,0.0002006,2]
[363715487,1748842238433,-430.0,0.0002006,2]
[363715489,1748842238443,-1540.68,0.0002006,2]
[363715491,1748842238452,-564.96,0.0002006,2]
[363715493,1748842238462,-666.36,0.0002006,2]
[363715495,1748842238472,-430.0,0.00020061,2]
[363715497,1748842238482,-430.0,0.00020061,2]
[363715499,1748842238491,-677.72,0.00020061,2]
[363715501,1748842238500,-430.0,0.00020061,2]
[363715503,1748842238512,-431.14,0.00020062,2]
[363715505,1748842238522,-430.0,0.00020062,2]
[363715507,1748842238531,-430.0,0.00020062,2]
[363715509,1748842238541,-430.0,0.00020062,2]
[363715511,1748842238551,-430.0,0.00020062,2]
[363715513,1748842238561,-430.0,0.00020062,2]
[363715515,1748842238571,-3378.21,0.00020062,2]
[363715517,1748842238582,-609.25,0.00020062,2]
[363715519,1748842238592,-430.0,0.00020062,2]
[363715521,1748842238602,-430.0,0.00020062,2]
[363715523,1748842238611,-430.0,0.00020063,2]
[363715525,1748842238620,-430.0,0.00020063,2]
[363715527,1748842238630,-430.0,0.00020063,2]
[363715529,1748842238639,-430.0,0.00020063,2]
[363715531,1748842238649,-430.0,0.00020063,2]
[363715533,1748842238659,-430.0,0.00020064,2]
[363715535,1748842238668,-160.0,0.00020088,2]
[363715537,1748842238678,-212.83419937,0.00020089,2]
[363715539,1748842238687,-12668.79298183,0.00020089,2]
[363715541,1748842238697,-842.5625,0.00020089,2]
[363715543,1748842238707,-423.56953423,0.00020089,2]
[363715545,1748842238716,-229.39799938,0.00020089,2]
[363715547,1748842238726,-160.0,0.00020089,2]
[363715549,1748842238736,-160.0,0.00020089,2]
[363715551,1748842238745,-160.0,0.00020089,2]
[363715552,1748842238754,-160.0,0.0002009,2]
[363715553,1748842238763,-160.0,0.0002009,2]
[363715554,1748842238773,-1000.0,0.00020129,2]
[363715555,1748842238782,-199.5569,0.00020187,2]
[363715556,1748842238791,-430.0,0.00020273,2]
[363715557,1748842238801,-430.0,0.00020334,2]
[363715558,1748842238811,-1279.57,0.00020334,2]
[363715559,1748842238820,-430.0,0.00020334,2]
[363715560,1748842238830,-1222.42,0.00020334,2]
[363715561,1748842238839,-430.0,0.00020334,2]
[363715562,1748842238849,-1540.68,0.00020334,2]
[363715563,1748842238859,-564.96,0.00020334,2]
[363715564,1748842238869,-666.36,0.00020334,2]
[363715565,1748842238879,-430.0,0.00020335,2]
[363715566,1748842238889,-430.0,0.00020335,2]
[363715567,1748842238898,-677.72,0.00020335,2]
[363715568,1748842238908,-431.14,0.00020336,2]
[363715569,1748842238918,-430.0,0.00020336,2]
[363715570,1748842238927,-430.0,0.00020336,2]
[363715571,1748842238937,-430.0,0.00020336,2]
[363715572,1748842238947,-430.0,0.00020336,2]
[363715573,1748842238956,-3378.21,0.00020336,2]
[363715574,1748842238966,-609.25,0.00020336,2]
[363715575,1748842238976,-430.0,0.00020336,2]
[363715576,1748842238986,-430.0,0.00020336,2]
[363715577,1748842238996,-430.0,0.00020337,2]
[363715578,1748842239006,-430.0,0.00020337,2]
[363715579,1748842239016,-430.0,0.00020337,2]
[363715580,1748842239026,-430.0,0.00020337,2]
[363715581,1748842239035,-430.0,0.00020337,2]
[363715582,1748842239045,-182.73258509,0.00020399,2]
[363715583,1748842239054,-1000.0,0.00020521,2]
[363715584,1748842239064,-1000.0,0.00020521,2]
[363715585,1748842239074,-430.0,0.00020547,2]
[363715586,1748842239084,-681.81,0.00020547,2]
[363715587,1748842239094,-160.81771939,0.00020547,2]
[363715588,1748842239104,-194.7734244,0.00020608,2]
[363715589,1748842239113,-1279.57,0.00020608,2]
[363715590,1748842239123,-257.23,0.00020608,2]
[363715591,1748842239133,-1222.42,0.00020608,2]
[363715592,1748842239143,-430.0,0.00020608,2]
[363715593,1748842239152,-1540.68,0.00020608,2]
[363715594,1748842239163,-564.96,0.00020608,2]
[363715595,1748842239173,-666.36,0.00020608,2]
[363715596,1748842239183,-430.0,0.00020609,2]
[363715597,1748842239193,-430.0,0.00020609,2]
[363715598,1748842239203,-677.72,0.00020609,2]
[363715599,1748842239212,-431.14,0.0002061,2]
[363715600,1748842239224,-430.0,0.0002061,2]
[363715601,1748842239233,-430.0,0.0002061,2]
[363715602,1748842239243,-430.0,0.0002061,2]
[363715603,1748842239253,-430.0,0.0002061,2]
[363715604,1748842239262,-3378.21,0.0002061,2]
[363715605,1748842239271,-609.25,0.0002061,2]
[363715606,1748842239281,-430.0,0.0002061,2]
[363715607,1748842239290,-430.0,0.0002061,2]
[363715608,1748842239300,-430.0,0.00020611,2]
[363715609,1748842239310,-430.0,0.00020611,2]
[363715610,1748842239322,-430.0,0.00020611,2]
[363715611,1748842239333,-430.0,0.00020611,2]
[363715612,1748842239343,-430.0,0.00020611,2]
[363715613,1748842239352,-800.0,0.00020767,2]
[363715614,1748842239361,-420.0,0.00020786,2]
[363715615,1748842239371,-430.0,0.00020821,2]
[363715616,1748842239380,-1279.57,0.00020882,2]
[363715617,1748842239390,-1222.42,0.00020882,2]
[363715618,1748842239400,-430.0,0.00020882,2]
[363715619,1748842239410,-1540.68,0.00020882,2]
[363715620,1748842239420,-564.96,0.00020882,2]
[363715621,1748842239430,-666.36,0.00020882,2]
[363715622,1748842239439,-526.15819155,0.00020883,2]
[363715623,1748842239449,-430.0,0.00020883,2]
[363715624,1748842239458,-677.72,0.00020883,2]
[363715625,1748842239468,-431.14,0.00020884,2]
[363715626,1748842239478,-430.0,0.00020884,2]
[363715627,1748842239488,-430.0,0.00020884,2]
[363715628,1748842239616,-430.0,0.00020884,2]
[363715629,1748842239627,-430.0,0.00020884,2]
[363715630,1748842239637,-3378.21,0.00020884,2]
[363715631,1748842239647,-609.25,0.00020884,2]
[363715632,1748842239657,-430.0,0.00020884,2]
[363715633,1748842239667,-430.0,0.00020884,2]
[363715634,1748842239676,-430.0,0.00020885,2]
[363715635,1748842239686,-430.0,0.00020885,2]
[363715636,1748842239695,-430.0,0.00020885,2]
[363715637,1748842239705,-430.0,0.00020885,2]
[363715638,1748842239714,-420.0,0.00020895,2]
[363715639,1748842239724,-151.0,0.00020898,2]
[363715640,1748842239734,-151.47158686,0.00020898,2]
[363715641,1748842239743,-500.0,0.00020898,2]
[363715642,1748842239753,-500.0,0.00020898,2]
[363715643,1748842239763,-500.0,0.00020898,2]
[363715644,1748842239774,-500.0,0.00020898,2]
[363715646,1748842239784,-500.0,0.00020898,2]
[363715648,1748842239793,-632.79567003,0.00020898,2]
[363715650,1748842239803,-500.0,0.00020898,2]
[363715651,1748842239812,-207.4,0.00020898,2]
[363715652,1748842239823,-500.0,0.00020898,2]
[363715653,1748842239832,-500.0,0.00020898,2]
[363715655,1748842239842,-500.0,0.00020898,2]
[363715657,1748842239852,-500.0,0.00020898,2]
[363715659,1748842239861,-500.0,0.00020898,2]
[363715661,1748842239871,-500.0,0.00020898,2]
[363715663,1748842239880,-500.0,0.00020898,2]
[363715665,1748842239890,-5000.0,0.00020898,2]
[363715667,1748842239900,-500.0,0.00020898,2]
[363715669,1748842239909,-500.0,0.00020898,2]
[363715671,1748842239919,-500.0,0.00020898,2]
[363715673,1748842239928,-500.0,0.00020898,2]
[363715675,1748842239937,-500.0,0.00020898,2]
[363715677,1748842239947,-182.73258509,0.000209,2]
[363715679,1748842239956,-1325.8631852,0.00020917,2]
[363715681,1748842239965,-268.00654762,0.00021,2]
[363715683,1748842239975,-161.47851057,0.00021,7]
[363715685,1748842239985,-200.46136976,0.00021,2]